fUST/lending_fUST_20240504
["ID","MTS","AMOUNT","RATE_DAILY","PERIOD"]
[325363753,1714752635100,-500.0,0.00024657,2]
[325363754,1714752635110,-514.40698916,0.00024657,2]
[325363755,1714752635119,-500.0,0.00024657,2]
[325363756,1714752635129,-500.0,0.00024657,2]
[325363757,1714752635139,-5450.43,0.00024657,2]
[325363758,1714752635149,-500.0,0.00024657,2]
[325363759,1714752635159,-526.35745403,0.00024657,2]
[325363760,1714752635168,-500.0,0.00024657,2]
[325363761,1714752635177,-9639.94,0.00024657,2]
[325363762,1714752635187,-500.0,0.00024657,2]
[325363763,1714752635196,-500.0,0.00024657,2]
[325363764,1714752635206,-500.0,0.00024657,2]
[325363765,1714752635216,-310.24651861,0.00024657,2]
[325363766,1714752635226,-500.0,0.00024657,2]
[325363767,1714752635235,-2863.96,0.00024657,2]
[325363768,1714752635245,-500.0,0.00024657,2]
[325363769,1714752635256,-500.0,0.00024657,2]
[325363770,1714752635266,-5846.76,0.00024657,2]
[325363771,1714752635276,-655.08,0.00024657,2]
[325363772,1714752635285,-500.0,0.00024657,2]
[325363773,1714752635295,-500.0,0.00024657,2]
[325363774,1714752635305,-500.0,0.00024657,2]
[325363775,1714752635314,-500.0,0.00024657,2]
[325363776,1714752635324,-500.0,0.00024657,2]
[325363777,1714752635334,-1488.25,0.00024657,2]
[325363778,1714752635353,-8763.49,0.00024657,2]
[325363779,1714752635363,-500.0,0.00024657,2]
[325363780,1714752635372,-500.0,0.00024657,2]
[325363781,1714752635382,-500.0,0.00024657,2]
[325363782,1714752635391,-500.0,0.00024657,2]
[325363783,1714752635401,-500.0,0.00024657,2]
[325363784,1714752635412,-649.18,0.00024657,2]
[325363785,1714752635421,-500.0,0.00024657,2]
[325363786,1714752635432,-954.84,0.00024657,2]
[325363787,1714752635442,-919.36,0.00024657,2]
[325363788,1714752635452,-3161.56,0.00024657,2]
[325363789,1714752635461,-500.0,0.00024657,2]
[325363790,1714752635472,-500.0,0.00024657,2]
[325363791,1714752635481,-500.0,0.00024657,2]
[325363792,1714752635491,-500.0,0.00024657,2]
[325363793,1714752635502,-502.95623922,0.00024657,2]
[325363794,1714752635512,-826.39,0.00024657,2]
[325363795,1714752635521,-1417.26,0.00024657,2]
[325363796,1714752635531,-500.0,0.00024657,2]
[325363797,1714752635540,-502.58480364,0.00024657,2]
[325363798,1714752635550,-500.0,0.00024657,2]
[325363799,1714752635560,-500.0,0.00024657,2]
[325363800,1714752635570,-500.0,0.00024657,2]
[325363801,1714752635579,-609.36,0.00024657,2]
[325363802,1714752635589,-355.05104603,0.00024657,2]
[325363803,1714752635599,-501.87953849,0.00024657,2]
[325363804,1714752635608,-500.0,0.00024657,2]
[325363805,1714752635618,-500.0,0.00024657,2]
[325363806,1714752635627,-500.0,0.00024657,2]
[325363807,1714752635637,-500.0,0.00024657,2]
[325363808,1714752635646,-500.0,0.00024657,2]
[325363809,1714752635655,-500.0,0.00024657,2]
[325363810,1714752635664,-409.89233265,0.00024657,2]
[325363811,1714752635674,-500.0,0.00024657,2]
[325363812,1714752635683,-500.0,0.00024657,2]
[325363813,1714752635692,-500.0,0.00024657,2]
[325363814,1714752635702,-500.0,0.00024657,2]
[325363815,1714752635712,-500.0,0.00024657,2]
[325363816,1714752635721,-250.55453771,0.00024657,2]
[325363817,1714752635731,-500.0,0.00024657,2]
[325363818,1714752635740,-2231.64,0.00024657,2]
[325363819,1714752635751,-500.0,0.00024657,2]
[325363820,1714752635761,-500.0,0.00024657,2]
[325363821,1714752635770,-500.0,0.00024657,2]
[325363822,1714752635780,-1036.61,0.00024657,2]
[325363823,1714752635790,-500.0,0.00024657,2]
[325363824,1714752635799,-500.0,0.00024657,2]
[325363825,1714752635808,-500.0,0.00024657,2]
[325363826,1714752635818,-500.0,0.00024657,2]
[325363827,1714752635827,-500.0,0.00024657,2]
[325363828,1714752635836,-500.0,0.00024657,2]
[325363829,1714752635846,-500.0,0.00024657,2]
[325363830,1714752635856,-359.53788496,0.00024657,2]
[325363831,1714752635982,294.77946161,0.00019178,2]
[325363913,1714752641551,-14.12883788,0.00023999,2]
[325363914,1714752641565,-141.51816283,0.00023999,2]
[325363915,1714752641575,-331.0228064,0.00024557,2]
[325363916,1714752641584,-331.02280636,0.00024626,2]
[325363917,1714752641593,-144.92513997,0.00024657,2]
[325363918,1714752641603,-431.33605261,0.00024657,2]
[325363919,1714752641612,-239.49226065,0.00024657,2]
[325363974,1714752646369,-1569.79773935,0.00024657,2]
[325363975,1714752646378,-518.69,0.00024657,2]
[325363976,1714752646387,-500.0,0.00024657,2]
[325363977,1714752646397,-2033.06,0.00024657,2]
[325363978,1714752646406,-500.0,0.00024657,2]
[325363979,1714752646416,-661.84,0.00024657,2]
[325363980,1714752646425,-1304.22,0.00024657,2]
[325363981,1714752646434,-500.0,0.00024657,2]
[325363982,1714752646444,-841.9,0.00024657,2]
[325363983,1714752646454,-4270.44,0.00024657,2]
[325363984,1714752646464,-500.0,0.00024657,2]
[325363985,1714752646473,-500.0,0.00024657,2]
[325363986,1714752646482,-500.0,0.00024657,2]
[325363987,1714752646492,-651.21,0.00024657,2]
[325363988,1714752646501,-500.0,0.00024657,2]
[325363989,1714752646511,-500.0,0.00024657,2]
[325363990,1714752646520,-500.0,0.00024657,2]
[325363991,1714752646529,-539.59,0.00024657,2]
[325363992,1714752646539,-500.0,0.00024657,2]
[325363993,1714752646548,-641.97,0.00024657,2]
[325363994,1714752646557,-500.0,0.00024657,2]
[325363995,1714752646567,-500.0,0.00024657,2]
[325363996,1714752646576,-5444.24,0.00024657,2]
[325363997,1714752646586,-500.0,0.00024657,2]
[325363998,1714752646595,-500.0,0.00024657,2]
[325363999,1714752646604,-500.0,0.00024657,2]
[325364000,1714752646614,-2248.39,0.00024657,2]
[325364001,1714752646623,-1173.15,0.00024657,2]
[325364002,1714752646632,-41696.51,0.00024657,2]
[325364003,1714752646642,-812.09,0.00024657,2]
[325364004,1714752646651,-500.0,0.00024657,2]
[325364005,1714752646662,-500.0,0.00024657,2]
[325364006,1714752646672,-1369.8,0.00024657,2]
[325364007,1714752646681,-500.0,0.00024657,2]
[325364008,1714752646691,-500.0,0.00024657,2]
[325364009,1714752646701,-1026.08,0.00024657,2]
[325364010,1714752646710,-3496.05,0.00024657,2]
[325364011,1714752646719,-500.0,0.00024657,2]
[325364012,1714752646728,-500.0,0.00024657,2]
[325364013,1714752646738,-500.0,0.00024657,2]
[325364014,1714752646747,-500.0,0.00024657,2]
[325364015,1714752646756,-496.54352001,0.00024657,2]
[325364016,1714752646766,-5620.69,0.00024657,2]
[325364017,1714752646775,-500.0,0.00024657,2]
[325364018,1714752646784,-502.58,0.00024657,2]
[325364019,1714752646793,-500.0,0.00024657,2]
[325364020,1714752646802,-560.58,0.00024657,2]
[325364021,1714752646811,-1067.14,0.00024657,2]
[325364022,1714752646821,-783.03,0.00024657,2]
[325364023,1714752646830,-783.03,0.00024657,2]
[325364024,1714752646839,-783.03,0.00024657,2]
[325364025,1714752646848,-501.53861556,0.00024657,2]
[325364026,1714752646858,-783.03,0.00024657,2]
[325364027,1714752646867,-783.03,0.00024657,2]
[325364028,1714752646876,-783.03,0.00024657,2]
[325364029,1714752646885,-783.03,0.00024657,2]
[325364030,1714752646894,-783.03,0.00024657,2]
[325364031,1714752646903,-521.54667272,0.00024657,2]
[325364032,1714752646912,-500.0,0.00024657,2]
[325364033,1714752646922,-500.0,0.00024657,2]
[325364034,1714752646931,-500.0,0.00024657,2]
[325364035,1714752646940,-500.0,0.00024657,2]
[325364036,1714752646949,-500.0,0.00024657,2]
[325364037,1714752646958,-503.90718852,0.00024657,2]
[325364038,1714752646967,-500.0,0.00024657,2]
[325364039,1714752646976,-500.0,0.00024657,2]
[325364040,1714752646990,-500.0,0.00024657,2]
[325364041,1714752646999,-500.0,0.00024657,2]
[325364042,1714752647008,-500.0,0.00024657,2]
[325364043,1714752647019,-500.15052637,0.00024657,2]
[325364044,1714752647029,-500.0,0.00024657,2]
[325364045,1714752647038,-783.3,0.00024657,2]
[325364046,1714752647047,-2448.4,0.00024657,2]
[325364047,1714752647058,-500.0,0.00024657,2]
[325364048,1714752647069,-500.0,0.00024657,2]
[325364049,1714752647079,-500.0,0.00024657,2]
[325364050,1714752647088,-500.0,0.00024657,2]
[325364051,1714752647097,-513.96,0.00024657,2]
[325364052,1714752647107,-500.0,0.00024657,2]
[325364053,1714752647116,-500.0,0.00024657,2]
[325364054,1714752647126,-500.0,0.00024657,2]
[325364055,1714752647135,-500.0,0.00024657,2]
[325364056,1714752647144,-500.0,0.00024657,2]
[325364057,1714752647153,-500.0,0.00024657,2]
[325364058,1714752647163,-500.0,0.00024657,2]
[325364059,1714752647172,-500.0,0.00024657,2]
[325364060,1714752647181,-500.0,0.00024657,2]
[325364061,1714752647190,-151.0,0.00024657,2]
[325364062,1714752647199,-816.54,0.00024657,2]
[325364063,1714752647209,-1009.08,0.00024657,2]
[325364064,1714752647218,-500.0,0.00024657,2]
[325364065,1714752647227,-900.6,0.00024657,2]
[325364066,1714752647236,-502.24851148,0.00024657,2]
[325364067,1714752647246,-500.0,0.00024657,2]
[325364068,1714752647255,-500.0,0.00024657,2]
[325364069,1714752647266,-503.58076678,0.00024657,2]
[325364070,1714752647275,-500.0,0.00024657,2]
[325364071,1714752647285,-500.0,0.00024657,2]
[325364072,1714752647294,-1263.57,0.00024657,2]
[325364073,1714752647304,-500.0,0.00024657,2]
[325364074,1714752647314,-500.0,0.00024657,2]
[325364075,1714752647323,-1057.19,0.00024657,2]
[325364076,1714752647332,-744.34,0.00024657,2]
[325364077,1714752647341,-500.0,0.00024657,2]
[325364078,1714752647351,-500.0,0.00024657,2]
[325364079,1714752647361,-500.0,0.00024657,2]
[325364080,1714752647370,-500.0,0.00024657,2]
[325364081,1714752647462,-500.0,0.00024657,2]
[325364082,1714752647473,-500.0,0.00024657,2]
[325364083,1714752647483,-500.0,0.00024657,2]
[325364084,1714752647492,-500.0,0.00024657,2]
[325364085,1714752647502,-11373.14,0.00024657,2]
[325364086,1714752647512,-500.0,0.00024657,2]
[325364087,1714752647522,-500.0,0.00024657,2]
[325364088,1714752647532,-500.0,0.00024657,2]
[325364089,1714752647542,-500.0,0.00024657,2]
[325364090,1714752647551,-230.12746781,0.00024657,2]
[325364091,1714752647560,-500.0,0.00024657,2]
[325364092,1714752647570,-523.89606347,0.00024657,2]
[325364093,1714752647580,-561.08,0.00024657,2]
[325364094,1714752647590,-500.0,0.00024657,2]
[325364095,1714752647599,-500.0,0.00024657,2]
[325364096,1714752647609,-500.0,0.00024657,2]
[325364097,1714752647618,-1599.42,0.00024657,2]
[325364098,1714752647627,-301.23124429,0.00024657,2]
[325364099,1714752647637,-502.0306075,0.00024657,2]
[325364100,1714752647646,-500.0,0.00024657,2]
[325364101,1714752647655,-9072.72,0.00024657,2]
[325364102,1714752647665,-500.0,0.00024657,2]
[325364103,1714752647675,-500.80561952,0.00024657,2]
[325364104,1714752647684,-500.0,0.00024657,2]
[325364105,1714752647693,-514.23,0.00024657,2]
[325364106,1714752647702,-977.23,0.00024657,2]
[325364107,1714752647711,-500.0,0.00024657,2]
[325364108,1714752647720,-1156.58,0.00024657,2]
[325364109,1714752647730,-500.0,0.00024657,2]
[325364110,1714752647738,-1114.81,0.00024657,2]
[325364111,1714752647747,-500.0,0.00024657,2]
[325364112,1714752647756,-587.1146473,0.00024657,2]
[325364113,1714752647767,-1435.75,0.00024657,2]
[325364114,1714752647776,-1214.88,0.00024657,2]
[325364115,1714752647786,-500.0,0.00024657,2]
[325364116,1714752647795,-500.0,0.00024657,2]
[325364117,1714752647806,-500.0,0.00024657,2]
[325364118,1714752647815,-1377.22,0.00024657,2]
[325364119,1714752647827,-576.71,0.00024657,2]
[325364120,1714752647838,-500.0,0.00024657,2]
[325364121,1714752647847,-500.90075547,0.00024657,2]
[325364122,1714752647856,-500.0,0.00024657,2]
[325364123,1714752647866,-500.0,0.00024657,2]
[325364124,1714752647876,-331.02280636,0.00024694,2]
[325364125,1714752647886,-150.0,0.00024735,2]
[325364126,1714752647896,-150.65349696,0.00024823,7]
[325364127,1714752647905,-783.03,0.0002493,2]
[325364128,1714752647915,-783.03,0.0002493,2]
[325364129,1714752647925,-783.03,0.0002493,2]
[325364130,1714752647935,-783.03,0.0002493,2]
[325364131,1714752647945,-500.0,0.0002493,2]
[325364132,1714752647954,-205.5977738,0.0002493,2]
[325364133,1714752647964,-20022.01072132,0.00024931,5]
[325364134,1714752647976,-500.0,0.00024931,2]
[325364135,1714752647988,-500.0,0.00024931,2]
[325364136,1714752647999,-502.86133965,0.00024931,2]
[325364137,1714752648008,-500.0,0.00024931,2]
[325364138,1714752648020,-484.35581297,0.00024931,2]
[325364139,1714752648030,-500.0,0.00024931,2]
[325364140,1714752648040,-500.0,0.00024931,2]
[325364141,1714752648049,-500.0,0.00024931,2]
[325364142,1714752648062,-500.0,0.00024931,2]
[325364143,1714752648073,-588.8,0.00024931,2]
[325364144,1714752648084,-500.0,0.00024931,2]
[325364145,1714752648095,-618.23433807,0.00024931,2]
[325364146,1714752648104,-500.0,0.00024931,2]
[325364147,1714752648114,-500.0,0.00024931,2]
[325364148,1714752648124,-597.46,0.00024931,2]
[325364149,1714752648133,-500.0,0.00024931,2]
[325364150,1714752648143,-500.0,0.00024931,2]
[325364151,1714752648152,-500.0,0.00024931,2]
[325364152,1714752648162,-500.0,0.00024931,2]
[325364153,1714752648171,-500.0,0.00024931,2]
[325364154,1714752648180,-500.0,0.00024931,2]
[325364155,1714752648189,-500.0,0.00024931,2]
[325364156,1714752648199,-500.0,0.00024931,2]
[325364157,1714752648209,-500.0,0.00024931,2]
[325364158,1714752648218,-500.0,0.00024931,2]
[325364159,1714752648228,-500.0,0.00024931,2]
[325364160,1714752648238,-246.07741292,0.00024931,2]
[325364161,1714752648247,-500.0,0.00024931,2]
[325364162,1714752648256,-500.0,0.00024931,2]
[325364163,1714752648267,-500.0,0.00024931,2]
[325364164,1714752648277,-631.93,0.00024931,2]
[325364165,1714752648289,-500.0,0.00024931,2]
[325364166,1714752648299,-500.0,0.00024931,2]
[325364167,1714752648308,-500.0,0.00024931,2]
[325364168,1714752648318,-500.0,0.00024931,2]
[325364169,1714752648327,-887.56,0.00024931,2]
[325364170,1714752648337,-500.0,0.00024931,2]
[325364171,1714752648347,-804.94,0.00024931,2]
[325364172,1714752648356,-500.0,0.00024931,2]
[325364173,1714752648366,-2485.15,0.00024931,2]
[325364174,1714752648376,-500.0,0.00024931,2]
[325364175,1714752648385,-500.0,0.00024931,2]
[325364176,1714752648394,-500.0,0.00024931,2]
[325364177,1714752648404,-500.0,0.00024931,2]
[325364178,1714752648413,-500.0,0.00024931,2]
[325364179,1714752648423,-500.0,0.00024931,2]
[325364180,1714752648432,-500.0,0.00024931,2]
[325364181,1714752648442,-500.0,0.00024931,2]
[325364182,1714752648451,-500.0,0.00024931,2]
[325364183,1714752648461,-500.0,0.00024931,2]
[325364184,1714752648470,-1245.86,0.00024931,2]
[325364185,1714752648479,-517.21800901,0.00024931,2]
[325364186,1714752648489,-500.0,0.00024931,2]
[325364187,1714752648498,-625.08,0.00024931,2]
[325364188,1714752648508,-500.0,0.00024931,2]
[325364189,1714752648518,-501.19064348,0.00024931,2]
[325364190,1714752648528,-500.0,0.00024931,2]
[325364191,1714752648537,-505.4215992,0.00024931,2]
[325364192,1714752648547,-500.0,0.00024931,2]
[325364193,1714752648556,-500.0,0.00024931,2]
[325364194,1714752648566,-500.0,0.00024931,2]
[325364195,1714752648575,-500.0,0.00024931,2]
[325364196,1714752648584,-806.09,0.00024931,2]
[325364197,1714752648594,-500.0,0.00024931,2]
[325364198,1714752648603,-500.0,0.00024931,2]
[325364199,1714752648612,-500.0,0.00024931,2]
[325364200,1714752648621,-500.0,0.00024931,2]
[325364201,1714752648630,-500.0,0.00024931,2]
[325364202,1714752648640,-500.0,0.00024931,2]
[325364203,1714752648649,-500.0,0.00024931,2]
[325364204,1714752648658,-500.0,0.00024931,2]
[325364205,1714752648667,-500.0,0.00024931,2]
[325364206,1714752648676,-500.0,0.00024931,2]
[325364207,1714752648686,-500.0,0.00024931,2]
[325364208,1714752648695,-500.0,0.00024931,2]
[325364209,1714752648705,-1000.0,0.00024931,2]
[325364210,1714752648714,-500.0,0.00024931,2]
[325364211,1714752648723,-365.47561261,0.00024931,2]
[325364212,1714752648733,-500.0,0.00024931,2]
[325364213,1714752648742,-500.0,0.00024931,2]
[325364214,1714752648754,-500.0,0.00024931,2]
[325364215,1714752648763,-338.34701012,0.00024931,2]
[325364216,1714752648772,-1297.22,0.00024931,2]
[325364217,1714752648782,-500.0,0.00024931,2]
[325364218,1714752648791,-500.0,0.00024931,2]
[325364219,1714752648800,-500.0,0.00024931,2]
[325364220,1714752648810,-512.1,0.00024931,2]
[325364221,1714752648819,-500.0,0.00024931,2]
[325364222,1714752648828,-500.0,0.00024931,2]
[325364223,1714752648837,-500.0,0.00024931,2]
[325364224,1714752648847,-500.0,0.00024931,2]
[325364225,1714752648856,-500.0,0.00024931,2]
[325364226,1714752648865,-500.0,0.00024931,2]
[325364227,1714752648876,-353.50389398,0.00024931,2]
[325364228,1714752648885,-500.0,0.00024931,2]
[325364229,1714752648975,-500.0,0.00024931,2]
[325364230,1714752648988,-500.0,0.00024931,2]
[325364231,1714752648997,-562.7,0.00024931,2]
[325364232,1714752649006,-500.0,0.00024931,2]
[325364233,1714752649016,-500.0,0.00024931,2]
[325364234,1714752649027,-643.18,0.00024931,2]
[325364235,1714752649036,-500.0,0.00024931,2]
[325364236,1714752649045,-586.15,0.00024931,2]
[325364237,1714752649054,-500.0,0.00024931,2]
[325364238,1714752649065,-500.0,0.00024931,2]
[325364239,1714752649074,-500.0,0.00024931,2]
[325364240,1714752649083,-500.0,0.00024931,2]
[325364241,1714752649092,-500.0,0.00024931,2]
[325364242,1714752649101,-500.0,0.00024931,2]
[325364243,1714752649110,-1159.64,0.00024931,2]
[325364244,1714752649119,-500.0,0.00024931,2]
[325364245,1714752649129,-500.0,0.00024931,2]
[325364246,1714752649139,-1526.51,0.00024931,2]
[325364247,1714752649149,-607.56,0.00024931,2]
[325364248,1714752649160,-500.0,0.00024931,2]
[325364249,1714752649170,-2142.42,0.00024931,2]
[325364250,1714752649180,-500.0,0.00024931,2]
[325364251,1714752649190,-500.0,0.00024931,2]
[325364252,1714752649200,-500.0,0.00024931,2]
[325364253,1714752649212,-500.0,0.00024931,2]
[325364254,1714752649222,-500.0,0.00024931,2]
[325364255,1714752649232,-500.0,0.00024931,2]
[325364256,1714752649241,-2381.42,0.00024931,2]
[325364257,1714752649250,-500.0,0.00024931,2]
[325364258,1714752649260,-500.0,0.00024931,2]
[325364259,1714752649270,-630.7,0.00024931,2]
[325364260,1714752649280,-500.0,0.00024931,2]
[325364261,1714752649290,-500.0,0.00024931,2]
[325364262,1714752649299,-500.0,0.00024931,2]
[325364263,1714752649308,-500.0,0.00024931,2]
[325364264,1714752649318,-500.0,0.00024931,2]
[325364265,1714752649327,-503.18224918,0.00024931,2]
[325364266,1714752649337,-893.73,0.00024931,2]
[325364267,1714752649346,-500.0,0.00024931,2]
[325364268,1714752649356,-3272.0,0.00024931,2]
[325364269,1714752649366,-500.0,0.00024931,2]
[325364270,1714752649376,-500.0,0.00024931,2]
[325364271,1714752649385,-3018.34,0.00024931,2]
[325364272,1714752649395,-500.0,0.00024931,2]
[325364273,1714752649405,-500.0,0.00024931,2]
[325364274,1714752649414,-521.73,0.00024931,2]
[325364275,1714752649424,-500.0,0.00024931,2]
[325364276,1714752649434,-500.0,0.00024931,2]
[325364277,1714752649443,-500.0,0.00024931,2]
[325364278,1714752649453,-500.0,0.00024931,2]
[325364279,1714752649462,-500.0,0.00024931,2]
[325364280,1714752649472,-500.0,0.00024931,2]
[325364281,1714752649482,-500.0,0.00024931,2]
[325364282,1714752649492,-500.0,0.00024931,2]
[325364283,1714752649501,-502.60818128,0.00024931,2]
[325364284,1714752649511,-510.42,0.00024931,2]
[325364285,1714752649520,-533.1,0.00024931,2]
[325364286,1714752649530,-504.17905397,0.00024931,2]
[325364287,1714752649539,-503.08664842,0.00024931,2]
[325364288,1714752649549,-500.0,0.00024931,2]
[325364289,1714752649559,-558.54,0.00024931,2]
[325364290,1714752649568,-500.0,0.00024931,2]
[325364291,1714752649578,-503.26002999,0.00024931,2]
[325364292,1714752649587,-703.36,0.00024931,2]
[325364293,1714752649597,-417.02948274,0.00024931,2]
[325364294,1714752649608,-501.37358564,0.00024931,2]
[325364295,1714752649617,-500.0,0.00024931,2]
[325364296,1714752649626,-500.0,0.00024931,2]
[325364297,1714752649636,-500.0,0.00024931,2]
[325364298,1714752649645,-500.0,0.00024931,2]
[325364299,1714752649655,-500.0,0.00024931,2]
[325364300,1714752649664,-500.0,0.00024931,2]
[325364301,1714752649675,-511.4124855,0.00024931,2]
[325364302,1714752649686,-500.0,0.00024931,2]
[325364303,1714752649695,-500.0,0.00024931,2]
[325364304,1714752649704,-1095.57,0.00024931,2]
[325364305,1714752649714,-723.47,0.00024931,2]
[325364306,1714752649723,-1145.55,0.00024931,2]
[325364307,1714752649733,-500.0,0.00024931,2]
[325364308,1714752649742,-500.0,0.00024931,2]
[325364309,1714752649751,-500.0,0.00024931,2]
[325364310,1714752649760,-500.0,0.00024931,2]
[325364311,1714752649770,-500.0,0.00024931,2]
[325364312,1714752649779,-500.0,0.00024931,2]
[325364313,1714752649788,-500.0,0.00024931,2]
[325364314,1714752649797,-505.35860874,0.00024931,2]
[325364315,1714752649807,-300.0,0.00024931,2]
[325364316,1714752649817,-564.06,0.00024931,2]
[325364317,1714752649826,-500.0,0.00024931,2]
[325364318,1714752649835,-1500.12,0.00024931,2]
[325364319,1714752649845,-1269.66,0.00024931,2]
[325364320,1714752649854,-803.56,0.00024931,2]
[325364321,1714752649863,-301.22853952,0.00024931,2]
[325364322,1714752649873,-500.0,0.00024931,2]
[325364323,1714752649884,-500.0,0.00024931,2]
[325364324,1714752649894,-500.0,0.00024931,2]
[325364325,1714752649904,-500.0,0.00024931,2]
[325364326,1714752649913,-500.0,0.00024931,2]
[325364327,1714752649922,-500.0,0.00024931,2]
[325364328,1714752649932,-500.0,0.00024931,2]
[325364329,1714752649941,-500.0,0.00024931,2]
[325364330,1714752649950,-5450.43,0.00024931,2]
[325364331,1714752649959,-500.0,0.00024931,2]
[325364332,1714752649968,-500.0,0.00024931,2]
[325364333,1714752649978,-9639.94,0.00024931,2]
[325364334,1714752649990,-500.0,0.00024931,2]
[325364335,1714752649999,-500.0,0.00024931,2]
[325364336,1714752650008,-502.48251827,0.00024931,2]
[325364337,1714752650019,-500.0,0.00024931,2]
[325364338,1714752650029,-2863.96,0.00024931,2]
[325364339,1714752650038,-500.0,0.00024931,2]
[325364340,1714752650048,-500.0,0.00024931,2]
[325364341,1714752650057,-5846.76,0.00024931,2]
[325364342,1714752650068,-655.08,0.00024931,2]
[325364343,1714752650080,-500.0,0.00024931,2]
[325364344,1714752650089,-500.0,0.00024931,2]
[325364345,1714752650098,-500.0,0.00024931,2]
[325364346,1714752650107,-500.0,0.00024931,2]
[325364347,1714752650117,-1488.25,0.00024931,2]
[325364348,1714752650129,-8763.49,0.00024931,2]
[325364349,1714752650138,-500.0,0.00024931,2]
[325364350,1714752650147,-500.0,0.00024931,2]
[325364351,1714752650156,-163.53,0.00024931,2]
[325364352,1714752650166,-500.0,0.00024931,2]
[325364353,1714752650176,-500.0,0.00024931,2]
[325364354,1714752650185,-649.18,0.00024931,2]
[325364355,1714752650194,-502.11722261,0.00024931,2]
[325364356,1714752650203,-954.84,0.00024931,2]
[325364357,1714752650213,-919.36,0.00024931,2]
[325364358,1714752650222,-3161.56,0.00024931,2]
[325364359,1714752650231,-500.0,0.00024931,2]
[325364360,1714752650240,-500.0,0.00024931,2]
[325364361,1714752650250,-610.14913314,0.00024931,2]
[325364362,1714752650259,-501.59089126,0.00024931,2]
[325364363,1714752650269,-1417.26,0.00024931,2]
[325364364,1714752650349,-826.39,0.00024931,2]
[325364365,1714752650365,-500.0,0.00024931,2]
[325364366,1714752650376,-500.0,0.00024931,2]
[325364367,1714752650385,-500.0,0.00024931,2]
[325364368,1714752650395,-609.36,0.00024931,2]
[325364369,1714752650405,-500.0,0.00024931,2]
[325364370,1714752650414,-500.0,0.00024931,2]
[325364371,1714752650424,-500.0,0.00024931,2]
[325364372,1714752650433,-500.0,0.00024931,2]
[325364373,1714752650443,-500.0,0.00024931,2]
[325364374,1714752650453,-500.0,0.00024931,2]
[325364375,1714752650462,-500.0,0.00024931,2]
[325364376,1714752650472,-500.0,0.00024931,2]
[325364377,1714752650481,-500.0,0.00024931,2]
[325364378,1714752650491,-500.0,0.00024931,2]
[325364379,1714752650500,-500.0,0.00024931,2]
[325364380,1714752650510,-500.0,0.00024931,2]
[325364381,1714752650520,-500.0,0.00024931,2]
[325364382,1714752650530,-2231.64,0.00024931,2]
[325364383,1714752650539,-508.10969985,0.00024931,2]
[325364384,1714752650548,-500.0,0.00024931,2]
[325364385,1714752650558,-500.0,0.00024931,2]
[325364386,1714752650567,-1036.61,0.00024931,2]
[325364387,1714752650576,-500.0,0.00024931,2]